bitfinex/quotes_ETHUSD_20251116
["timestamp","ask_amount","ask_price","bid_price","bid_amount"]
[1763321087558,1.1337408,3100.9,3098.5,1.1337408]
[1763321087762,0.405504,3100.9,3098.6,0.405504]
[1763321087999,1.09320031,3100.9,3098.6,0.871204]
[1763321088162,0.68769631,3100.9,3098.6,0.871204]
[1763321088369,0.1284,3101.0,3098.7,0.4657]
[1763321088669,0.1284,3101.0,3099.1,1.5392448]
[1763321089078,0.1284,3101.0,3099.3,0.405504]
[1763321089467,0.1284,3101.0,3099.4,0.4657]
[1763321090114,0.1284,3101.0,3099.5,0.405504]
[1763321090414,0.1284,3101.0,3099.7,0.405504]
[1763321090717,0.04991739,3102.0,3099.7,0.405504]
[1763321090878,0.6844182,3102.1,3099.9,0.405504]
[1763321091413,0.6844182,3102.1,3100.1,0.405504]
[1763321091776,0.405504,3102.0,3100.2,0.1885]
[1763321092007,0.405504,3102.0,3099.9,0.4797]
[1763321092209,0.405504,3101.5,3099.9,0.4797]
[1763321092781,0.405504,3101.5,3099.2,0.593704]
[1763321092782,0.405504,3101.9,3099.6,0.4797]
[1763321093112,0.405504,3101.9,3099.4,0.405504]
[1763321093479,0.405504,3101.7,3099.5,0.4797]
[1763321094118,1.5392448,3101.5,3099.2,0.6679]
[1763321094301,1.5892448,3101.3,3099.2,0.1882]
[1763321094485,0.405504,3100.9,3099.0,0.1885]
[1763321094691,0.405504,3100.9,3098.9,0.4797]
[1763321094692,0.405504,3100.9,3098.0,0.1882]
[1763321094890,1.1899222,3101.1,3098.3,0.4797]
[1763321095123,0.405504,3100.9,3098.3,0.4797]
[1763321095298,1.918159,3100.9,3098.3,0.4797]
[1763321095500,1.1899222,3100.8,3098.3,0.4797]
[1763321095716,2.14574797,3100.3,3098.0,0.6679]
[1763321095917,0.405504,3100.1,3098.0,0.6679]
[1763321096290,0.405504,3100.1,3098.0,0.1882]
[1763321096526,0.405504,3099.9,3098.0,0.1882]
[1763321096903,0.405504,3099.9,3096.9,8.66529738]
[1763321097109,0.1,3099.8,3097.3,0.4797]
[1763321097330,0.405504,3099.8,3097.6,0.4797]
[1763321097637,0.405504,3099.6,3097.6,0.4797]
[1763321097793,2.223663,3099.6,3097.6,0.4797]
[1763321097995,0.05,3098.9,3096.7,0.1885]
[1763321098361,0.405504,3098.6,3096.7,0.1885]
[1763321098532,0.405504,3098.7,3096.8,0.4797]
[1763321098732,0.405504,3098.5,3096.8,0.4797]
[1763321098911,1.5392448,3098.5,3096.8,0.4797]
[1763321099108,1.1337408,3098.5,3096.8,0.4797]
[1763321099533,0.405504,3098.4,3096.8,0.4797]
[1763321100314,1.454,3098.6,3096.8,0.4797]
[1763321100711,0.405504,3098.5,3096.8,0.4797]
[1763321101056,1.454,3099.6,3097.2,0.405504]
[1763321101347,0.68023008,3099.5,3096.9,0.405504]
[1763321101521,0.68023008,3099.5,3097.0,0.68159448]
[1763321101730,0.68023008,3099.5,3097.3,0.405504]
[1763321101915,2.61203635,3100.2,3097.8,1.5392448]
[1763321102124,2.61203635,3100.2,3097.4,0.4797]
[1763321102125,2.97161098,3100.1,3097.5,0.405504]
[1763321102329,1.36142831,3100.0,3097.6,0.405504]
[1763321102526,0.405504,3099.9,3097.6,0.405504]
[1763321102729,0.405504,3099.9,3097.3,1.1337408]
[1763321102730,1.36142831,3100.0,3097.8,0.405504]
[1763321102979,1.36142831,3100.0,3097.9,0.4797]
[1763321103281,0.67983383,3100.0,3098.3,8.66529738]
[1763321103489,0.50650317,3100.3,3099.9,0.1885]
[1763321103629,0.22231573,3100.2,3098.4,2.2074448]
[1763321103823,0.50650317,3100.3,3098.5,0.4797]
[1763321104138,0.405504,3100.2,3098.5,0.4797]
[1763321104348,0.405504,3100.0,3098.4,0.1885]
[1763321104534,0.405504,3099.8,3098.1,0.4797]
[1763321104745,1.08533887,3099.8,3098.1,0.4797]
[1763321104944,0.405504,3099.7,3098.1,0.4797]
[1763321105145,0.405504,3099.5,3098.1,0.4797]
[1763321105532,0.67983487,3099.6,3098.0,0.1885]
[1763321105732,0.67983487,3099.7,3098.1,0.405504]
[1763321105933,0.67983487,3099.9,3098.0,0.6682]
[1763321106173,1.15803635,3100.2,3098.0,0.6682]
[1763321106174,0.67983487,3099.8,3098.1,0.4797]
[1763321106329,0.405504,3099.8,3098.1,0.4797]
[1763321106528,0.67983487,3099.7,3098.1,0.4797]
[1763321107162,0.67983487,3099.6,3098.1,0.4797]
[1763321107360,0.67983487,3099.5,3098.1,0.4797]
[1763321107629,0.67983487,3099.8,3098.1,0.4797]
[1763321107828,1.15803635,3100.0,3098.1,0.4797]
[1763321107829,0.67983487,3099.7,3098.1,0.4797]
[1763321108027,1.455,3099.9,3098.1,0.4797]
[1763321108028,0.67983487,3099.6,3098.1,0.4797]
[1763321108272,0.67983487,3099.5,3098.1,0.4797]
[1763321108460,0.67983487,3099.4,3098.1,0.4797]
[1763321108661,0.67983487,3099.3,3098.1,0.4797]
[1763321108858,0.67983487,3099.7,3098.1,0.4797]
[1763321109175,1.83787122,3099.6,3098.1,0.4797]
[1763321109332,0.67983487,3099.5,3098.1,0.4797]
[1763321109532,0.67983487,3099.4,3098.1,0.4797]
[1763321109738,1.15803635,3099.6,3098.1,0.4797]
[1763321109739,0.67983487,3099.3,3098.1,0.4797]
[1763321109933,0.67983487,3099.2,3098.1,0.4797]
[1763321110140,0.67983487,3099.1,3098.1,0.4797]
[1763321110374,0.67983487,3099.0,3098.1,0.4797]
[1763321110597,1.1337408,3099.5,3098.2,0.405504]
[1763321110598,0.67983487,3098.9,3098.2,0.405504]
[1763321110746,1.15803635,3099.8,3099.4,0.1885]
[1763321110942,0.68579135,3099.7,3099.4,0.1885]
[1763321111141,1.8438277,3099.6,3099.4,0.1885]
[1763321111388,0.50661003,3100.1,3099.2,0.1885]
[1763321111543,0.68739656,3100.0,3099.2,0.1885]
[1763321111737,0.68739656,3099.9,3099.2,0.1885]
[1763321112040,1.15803635,3101.2,3099.8,0.4943]
[1763321112256,1.455,3101.9,3100.1,0.1885]
[1763321112257,0.68712542,3101.1,3100.1,0.1885]
[1763321112461,0.68712542,3101.1,3099.3,1.1337408]
[1763321112462,8.66529738,3100.9,3097.3,0.09999999]
[1763321112687,8.66529738,3100.9,3097.1,0.001]
[1763321112688,0.405504,3098.7,3097.1,0.001]
[1763321112887,8.66529738,3098.8,3097.1,0.001]
[1763321112888,2.14255852,3098.5,3097.2,0.1885]
[1763321113072,2.3160727,3098.9,3097.5,0.4807]
[1763321113073,0.68904571,3098.4,3097.5,0.4807]
[1763321113423,0.4807,3098.4,3097.5,0.4807]
[1763321113610,0.69022499,3099.5,3098.3,0.1885]
[1763321113814,0.98976156,3099.4,3098.3,0.1885]
[1763321114020,0.69022499,3099.3,3098.3,0.1885]
[1763321114197,0.69022499,3099.2,3098.4,0.4797]
[1763321114394,1.1337408,3100.1,3098.4,0.4797]
[1763321114395,0.69022499,3099.1,3098.4,0.4797]
[1763321114580,1.15803635,3099.7,3098.4,0.4797]
[1763321114581,2.12831195,3099.7,3098.4,0.4797]
[1763321114906,0.99164172,3099.6,3098.4,0.4797]
[1763321115197,0.50655833,3099.6,3098.5,0.405504]
[1763321115366,1.15803635,3100.4,3098.6,0.4797]
[1763321115563,0.50646341,3099.9,3098.6,0.4797]
[1763321115874,0.69285526,3099.8,3098.7,0.405504]
[1763321116075,1.15803635,3100.4,3098.7,0.405504]
[1763321116399,0.99336003,3100.3,3098.9,0.405504]
[1763321116587,0.69279473,3100.2,3098.9,0.405504]
[1763321116789,1.15803635,3100.9,3099.2,1.1337408]
[1763321116980,0.99312329,3100.8,3100.1,0.1874]
[1763321117177,0.69264464,3100.7,3100.1,0.1874]
[1763321117384,1.15803635,3101.3,3100.1,0.1874]
[1763321117587,0.99282649,3101.2,3100.2,0.4582]
[1763321117790,0.99282649,3101.1,3100.2,0.4582]
[1763321117986,0.99282649,3101.0,3100.1,0.1874]
[1763321118186,1.15803635,3101.4,3100.1,0.1874]
[1763321118187,0.99282649,3100.9,3100.1,0.1874]
[1763321118431,0.99282649,3100.8,3100.1,0.6456]
[1763321118612,0.69244211,3100.7,3100.1,0.6456]
[1763321118919,0.69226705,3101.2,3100.2,0.4582]
[1763321119127,0.9925779,3101.1,3100.2,0.4582]
[1763321119331,0.69226705,3101.0,3100.2,0.4582]
[1763321119480,0.69205411,3100.9,3100.2,0.4582]
[1763321119690,1.15803635,3101.5,3100.2,0.4582]
[1763321120037,0.9922863,3101.4,3100.2,0.4582]
[1763321120319,0.9922863,3101.3,3100.2,0.4582]
[1763321120620,0.9922863,3101.2,3100.1,0.1874]
[1763321120786,0.9922863,3101.1,3100.1,0.1874]
[1763321120986,0.99226795,3101.0,3100.1,0.1874]
[1763321121201,0.405504,3100.8,3099.4,0.1953]
[1763321121382,0.99227144,3100.7,3099.4,0.6509]
[1763321121604,0.99227144,3100.6,3099.4,0.6509]
[1763321121932,0.99227144,3100.5,3099.5,0.4556]
[1763321122135,0.69205394,3100.5,3099.5,0.4556]
[1763321122433,0.506376,3100.3,3099.5,0.4556]
[1763321122734,1.15803635,3101.6,3099.9,0.405504]
[1763321122938,0.50630569,3101.1,3100.1,0.405504]
[1763321123222,3.7710727,3102.3,3100.9,0.405504]
[1763321123223,1.15803635,3102.2,3100.9,0.405504]
[1763321123411,0.50819423,3102.1,3101.4,0.1953]
[1763321123787,0.002,3102.1,3101.5,0.4556]
[1763321124296,0.002,3102.1,3101.6,0.405504]
[1763321124855,0.002,3102.1,3101.7,0.4556]
[1763321125258,0.002,3102.1,3101.1,0.4556]
[1763321127654,0.002,3102.1,3101.2,0.405504]
[1763321128015,0.002,3102.1,3101.4,0.405504]
[1763321128418,0.002,3102.1,3101.5,0.4556]
[1763321129840,0.002,3102.1,3101.1,0.861104]
[1763321130173,0.002,3102.1,3101.2,0.4556]
[1763321131741,0.002,3102.1,3101.3,0.405504]
[1763321131942,0.002,3102.1,3101.4,0.4556]
[1763321133078,0.002,3102.1,3101.5,0.405504]
[1763321133223,0.002,3102.5,3101.5,0.405504]
[1763321133558,0.002,3102.5,3102.4,0.1953]
[1763321134156,0.002,3102.5,3102.4,0.6509]
[1763321137019,0.002,3102.5,3102.0,0.1953]
[1763321137433,0.002,3102.5,3102.0,0.6509]
[1763321138286,0.002,3102.5,3101.7,0.1953]
[1763321138580,0.002,3102.5,3101.2,0.4556]
[1763321139189,0.0019,3102.4,3100.7,0.4556]
[1763321139535,0.002,3102.5,3101.0,0.6509]
[1763321140075,0.002,3102.5,3101.1,0.4556]
[1763321140669,0.002,3102.5,3101.2,0.405504]
[1763321141055,0.002,3102.5,3101.1,0.4556]
[1763321141056,0.002,3102.5,3101.4,0.405504]
[1763321141577,0.002,3102.5,3101.0,0.1953]
[1763321141578,0.002,3102.5,3101.6,0.405504]
[1763321141890,0.002,3102.5,3101.5,0.4556]
[1763321142301,0.002,3102.5,3101.1,0.4556]
[1763321142594,0.002,3102.5,3101.2,0.405504]
[1763321142949,0.002,3102.5,3101.3,0.4556]
[1763321143541,0.002,3102.5,3101.4,0.405504]
[1763321143983,0.002,3102.5,3101.6,0.405504]
[1763321144348,0.002,3102.5,3101.7,0.4556]
[1763321150894,0.002,3102.5,3101.5,1.1337408]
[1763321151097,0.002,3102.5,3101.5,2.59317125]
[1763321151689,0.0019,3102.4,3101.0,0.6486]
[1763321152396,0.30194539,3102.3,3101.0,0.6486]
[1763321152600,0.30194539,3102.2,3101.0,0.6486]
[1763321152816,0.0019,3102.4,3101.0,0.6486]
[1763321153116,0.3019569,3102.3,3101.2,1.1337408]
[1763321153269,0.3019569,3102.2,3101.3,1.00350045]
[1763321153582,0.69770602,3102.5,3101.3,1.45580045]
[1763321153766,0.3019894,3102.4,3101.4,0.4523]
[1763321153967,0.002,3102.5,3101.4,0.4523]
[1763321154189,0.30197625,3102.4,3101.5,0.405504]
[1763321154403,0.002,3102.5,3102.4,0.1847]
[1763321154600,0.30396511,3102.5,3102.4,0.1847]
[1763321155006,0.30396511,3102.5,3102.4,1.1103]
[1763321155007,0.002,3102.5,3102.4,1.1103]
[1763321155167,0.002,3102.5,3101.7,1.1337408]
[1763321155168,0.002,3102.5,3102.1,0.1847]
[1763321155578,0.002,3102.5,3102.2,0.4523]
[1763321157296,0.002,3102.5,3102.1,0.1847]
[1763321158297,0.002,3102.5,3101.8,0.637]
[1763321158889,0.002,3102.5,3101.9,0.4523]
[1763321161692,0.002,3102.5,3102.4,0.4733]
[1763321162193,0.002,3102.5,3102.4,0.9256]
[1763321162631,0.002,3102.5,3102.4,1.331104]
[1763321162930,0.0079,3105.2,3102.9,0.405504]
[1763321163127,0.99759413,3105.1,3103.3,1.5392448]
[1763321163326,0.30192952,3105.0,3103.9,0.405504]
[1763321163530,0.0099,3105.6,3104.1,0.405504]
[1763321163731,0.0099,3105.6,3104.2,0.637]
[1763321164223,0.31081968,3105.6,3104.3,0.4523]
[1763321164426,0.002,3105.6,3104.4,1.5392448]
[1763321164726,0.002,3105.6,3104.6,0.405504]
[1763321165224,0.002,3105.6,3104.7,0.4523]
[1763321166611,0.0079,3104.8,3104.0,0.4523]
[1763321166829,0.0079,3105.3,3103.5,0.405504]
[1763321167022,0.002,3105.6,3104.2,0.637]
[1763321167421,0.002,3105.6,3103.4,0.1847]
[1763321167422,0.0079,3105.3,3103.6,0.4523]
[1763321167836,0.0079,3105.3,3103.4,0.1847]
[1763321168055,0.413404,3105.3,3102.7,0.4523]
[1763321168346,1.5392448,3104.5,3102.2,0.4523]
[1763321168550,0.405504,3104.3,3102.2,0.4523]
[1763321168733,0.405504,3104.1,3102.2,0.4523]
[1763321168931,0.29986992,3104.2,3102.2,1.36089637]
[1763321168932,0.405504,3103.9,3102.2,1.36089637]
[1763321169148,0.0079,3104.1,3102.2,1.36089637]
[1763321169443,0.405504,3104.1,3102.2,1.36089637]
[1763321169747,0.30784712,3104.0,3102.3,0.4523]
[1763321169908,0.29994712,3103.9,3102.3,0.4523]
[1763321170106,0.30784712,3103.9,3102.3,0.4523]
[1763321170310,0.405504,3104.4,3102.3,0.4523]
[1763321170311,0.0079,3104.1,3102.3,0.4523]
[1763321170542,0.0079,3104.1,3102.4,0.405504]
[1763321170847,0.0079,3104.1,3102.3,0.4523]
[1763321171347,0.3078719,3104.1,3102.3,0.4523]
[1763321171712,0.413404,3104.0,3102.3,0.4523]
[1763321171911,0.405504,3103.8,3102.0,0.1847]
[1763321172132,0.0079,3103.7,3102.0,0.1847]
[1763321172925,0.0079,3103.7,3102.0,0.637]
[1763321173930,0.30008997,3103.8,3102.1,0.4523]
[1763321174144,0.0079,3104.2,3102.4,0.405504]
[1763321174328,0.0079,3104.2,3102.5,1.33774677]
[1763321174731,1.455,3105.8,3102.7,0.405504]
[1763321174732,0.0079,3104.6,3102.7,0.405504]
[1763321175030,0.0079,3104.6,3102.6,0.405504]
[1763321175223,0.0079,3104.6,3102.5,0.88544677]
[1763321175224,0.50579646,3104.2,3102.5,0.4523]
[1763321175419,0.0079,3104.6,3102.5,0.4523]
[1763321175734,0.0079,3104.5,3102.5,0.4523]
[1763321176133,0.1079,3104.5,3102.5,0.4523]
[1763321176435,0.405504,3104.4,3101.9,1.1337408]
[1763321176646,0.405504,3104.2,3102.4,0.4714]
[1763321176833,0.405504,3104.0,3102.4,0.4714]
[1763321177244,0.0079,3103.9,3102.4,0.4714]
[1763321177457,0.69141118,3104.9,3102.5,0.405504]
[1763321177765,0.052,3105.6,3102.5,0.405504]
[1763321177766,0.405504,3104.7,3102.5,0.405504]
[1763321177949,0.0079,3104.8,3102.6,0.4714]
[1763321178150,0.0079,3104.7,3102.6,0.4714]
[1763321178339,0.50581016,3104.3,3102.6,0.4714]
[1763321178965,0.50581016,3104.3,3102.7,0.405504]
[1763321179127,0.50581016,3104.3,3102.9,1.5392448]
[1763321179326,0.0079,3105.2,3104.2,0.1894]
[1763321179533,0.50569138,3104.9,3103.3,8.67480141]
[1763321179768,0.50569138,3104.9,3103.5,0.405504]
[1763321179926,0.0099,3105.6,3103.5,0.405504]
[1763321180130,0.0099,3105.6,3103.4,1.6051408]
[1763321180131,0.002,3105.6,3103.7,0.405504]
[1763321180560,0.0079,3105.3,3103.8,0.4714]
[1763321180961,0.0079,3105.3,3103.6,0.20106448]
[1763321181267,0.0079,3105.3,3103.3,0.4714]
[1763321181867,0.405504,3105.2,3103.3,0.4714]
[1763321182072,0.0079,3105.3,3103.3,0.4714]
[1763321182239,0.002,3105.4,3103.3,0.4714]
[1763321182240,0.0079,3105.2,3103.3,0.4714]
[1763321182782,0.0079,3105.2,3103.4,0.405504]
[1763321182964,0.0079,3105.2,3103.5,0.4747]
[1763321183138,0.413404,3105.2,3103.5,0.4747]
[1763321183638,0.0079,3105.1,3103.5,0.4747]
[1763321185171,0.1371,3105.0,3103.5,0.071205]
[1763321185368,0.1371,3105.0,3103.1,0.405504]
[1763321185548,0.4114,3104.9,3103.1,0.405504]
[1763321186080,0.4114,3104.9,3102.1,0.001]
[1763321187065,0.4114,3104.9,3103.1,0.4747]
[1763321188159,0.002,3105.4,3103.1,0.4747]
[1763321188160,0.1371,3105.3,3103.2,0.405504]
[1763321188465,0.002,3105.4,3104.8,0.6553]
[1763321189079,0.002,3105.4,3104.8,0.098295]
[1763321189282,0.002,3105.4,3104.6,0.1803]
[1763321189899,0.002,3105.4,3104.6,0.655]
[1763321190207,0.002,3105.4,3104.6,0.54205461]
[1763321191112,0.002,3105.4,3104.6,0.08130819]
[1763321191414,0.002,3105.4,3103.1,0.405504]
[1763321191569,0.002,3105.4,3103.1,1.5392448]
[1763321191775,0.002,3105.4,3103.2,0.49513234]
[1763321192602,0.002,3105.4,3103.1,0.405504]
[1763321193002,0.50555593,3105.3,3103.1,0.405504]
[1763321193200,0.002,3105.4,3103.2,0.3766]
[1763321193422,0.002,3105.4,3105.3,0.0936]
[1763321193710,0.002,3105.4,3105.3,0.4702]
[1763321195191,0.002,3105.4,3104.8,0.12702]
[1763321195504,0.002,3105.4,3103.5,11.78129804]
[1763321195804,0.002,3105.4,3103.7,5.337]
[1763321196005,0.002,3105.4,3103.9,5.337]
[1763321196232,0.002,3105.4,3103.9,5.67274183]
[1763321196382,0.002,3105.4,3103.9,0.33574183]
[1763321196919,0.002,3105.4,3103.9,3.55749099]
[1763321197089,0.002,3105.4,3104.0,0.3557491]
[1763321197520,0.002,3105.4,3104.1,0.405504]
[1763321198717,0.002,3105.4,3104.3,0.405504]
[1763321199132,0.002,3105.4,3104.1,1.5392448]
[1763321199486,0.002,3105.4,3104.0,0.3557491]
[1763321199712,0.002,3105.4,3103.7,0.405504]
[1763321200013,0.002,3105.4,3103.6,1.1781298]
[1763321200215,0.002,3105.4,3103.7,0.405504]
[1763321200378,0.002,3105.4,3103.7,1.5392448]
[1763321201030,0.002,3105.4,3103.7,0.405504]
[1763321201390,0.002,3105.4,3103.7,1.5392448]
[1763321201624,0.002,3105.4,3103.9,0.405504]
[1763321204534,0.002,3105.4,3103.9,1.5392448]
[1763321204698,0.002,3105.4,3103.9,0.405504]
[1763321204898,0.002,3105.4,3104.7,1.5392448]
[1763321208805,0.1876,3104.8,3104.1,8.66214139]
[1763321209035,0.1876,3104.8,3104.2,0.86621414]
[1763321209208,0.6815,3104.8,3103.8,0.59393771]
[1763321209543,0.1876,3104.8,3104.2,1.1337408]
[1763321209714,0.4939,3104.7,3104.2,1.1337408]
[1763321210242,0.1876,3104.8,3104.2,1.1337408]
[1763321211241,0.002,3105.4,3104.6,8.66214139]
[1763321211441,0.002,3105.4,3104.7,0.86621414]
[1763321212344,0.4777,3105.4,3104.7,0.86621414]
[1763321213335,0.4777,3105.4,3104.6,8.66214139]
[1763321214614,0.002,3105.4,3104.6,8.66214139]
[1763321215049,0.002,3105.4,3104.7,1.5392448]
[1763321217612,0.4757,3105.3,3104.7,1.1337408]
[1763321217813,0.002,3105.4,3104.7,1.1337408]
[1763321218036,0.002,3105.4,3104.8,0.97958822]
[1763321218235,0.4777,3105.4,3104.2,1.1337408]
[1763321218861,0.002,3105.4,3104.3,0.405504]
[1763321220452,0.002,3105.4,3104.6,8.66214139]
[1763321220653,0.002,3105.4,3105.2,1.1337408]
[1763321221220,0.9341,3105.3,3104.0,2.84064853]
[1763321221421,0.4584,3105.2,3104.2,0.405504]
[1763321221723,0.4584,3105.2,3104.0,8.66314139]
[1763321221724,0.6718,3105.2,3104.0,0.001]
[1763321222169,0.4584,3104.1,3104.0,0.001]
[1763321222323,0.4757,3105.1,3104.0,0.001]
[1763321222521,0.1961,3105.2,3104.0,0.001]
[1763321222522,0.4757,3105.0,3104.0,0.001]
[1763321223165,0.1961,3105.2,3104.3,1.1337408]
[1763321223468,0.002,3105.4,3104.4,0.405504]
[1763321224154,0.4777,3105.4,3104.4,0.405504]
[1763321224471,0.4777,3105.4,3104.0,0.001]
[1763321224472,0.1961,3104.5,3104.0,0.001]
[1763321224632,0.4777,3105.4,3104.4,1.1337408]
[1763321225358,0.4777,3105.4,3104.0,0.406504]
[1763321228153,0.4777,3105.4,3104.0,0.001]
[1763321228850,0.6545,3104.1,3104.0,0.001]
[1763321229484,0.1961,3104.1,3104.0,0.001]
[1763321229682,0.002,3105.4,3104.0,0.001]
[1763321229683,0.6718,3104.4,3104.0,0.001]
[1763321230051,0.1961,3104.4,3104.0,0.001]
[1763321230252,0.1961,3105.0,3104.2,1.1337408]
[1763321230452,0.002,3105.4,3104.7,1.1337408]
[1763321230889,0.4757,3105.3,3104.3,0.405504]
[1763321232095,0.002,3105.4,3104.3,0.405504]
[1763321232256,0.4757,3105.3,3104.3,0.405504]
[1763321232660,0.002,3105.4,3104.3,0.405504]
[1763321233267,0.002,3105.4,3104.7,1.5392448]
[1763321233468,0.002,3105.4,3104.8,1.02013862]
[1763321236814,0.002,3105.4,3104.9,1.1337408]
[1763321237314,0.4723,3105.4,3104.9,1.1337408]
[1763321238000,0.002,3105.4,3104.9,1.1337408]
[1763321238775,0.4703,3105.3,3104.9,1.1337408]
[1763321238976,0.4703,3105.3,3105.0,1.05846428]
[1763321239373,0.002,3105.4,3105.0,1.05846428]
[1763321242600,0.4575,3105.4,3105.0,1.05846428]
[1763321244669,0.002,3105.4,3105.0,1.05846428]
[1763321245708,0.4575,3105.4,3105.0,1.05846428]
[1763321249078,0.4715,3105.1,3104.8,8.43076341]
[1763321249280,0.6685,3104.9,3104.7,1.1337408]
[1763321249582,0.197,3104.9,3104.7,1.1337408]
[1763321249784,0.927,3104.8,3104.3,8.43076341]
[1763321250098,0.927,3104.8,3104.4,1.1337408]
[1763321250099,0.4715,3104.7,3104.4,1.1337408]
[1763321250920,0.4555,3104.8,3104.4,1.1337408]
[1763321251216,0.4715,3104.5,3104.4,1.1337408]
[1763321251515,0.4715,3104.5,3104.0,0.001]
[1763321252532,0.197,3105.2,3104.4,1.1337408]
[1763321252821,0.002,3105.4,3104.8,8.43076341]
[1763321252989,0.4575,3105.4,3104.8,8.43076341]
[1763321254091,0.4575,3105.4,3104.8,1.26461451]
[1763321255107,0.4575,3105.4,3104.8,0.18969218]
[1763321256020,0.4575,3105.4,3104.0,0.406504]
[1763321256021,0.4575,3105.4,3104.4,8.43076341]
[1763321256356,0.6685,3104.9,3104.5,1.1337408]
[1763321256766,0.4555,3104.8,3104.5,1.1337408]
[1763321258984,0.4575,3105.4,3104.5,1.1337408]
[1763321259185,0.4575,3105.4,3104.4,9.27383975]
[1763321260104,0.4575,3105.4,3104.5,0.405504]
[1763321260288,0.4575,3105.4,3104.6,0.96793438]
[1763321264096,0.002,3105.4,3104.9,8.43076341]
[1763321264396,0.002,3105.4,3105.0,1.1337408]
[1763321266266,0.002,3105.4,3105.1,0.405504]
[1763321268707,0.002,3105.4,3105.0,1.1337408]
[1763321269004,0.002,3105.4,3105.1,0.95645042]
[1763321269197,0.4555,3105.3,3105.1,0.95645042]
[1763321269902,0.4715,3105.2,3104.8,1.1337408]
[1763321271407,0.6561,3104.9,3104.6,0.96793438]
[1763321271611,0.6561,3104.9,3104.5,0.001]
[1763321271974,0.1983,3104.9,3104.5,0.001]
[1763321273011,0.4963,3104.8,3104.5,0.001]
[1763321273514,0.4963,3105.2,3104.5,0.001]
[1763321273719,0.002,3105.4,3104.8,1.1337408]
[1763321273720,0.4983,3105.4,3104.8,1.1337408]
[1763321276230,0.4983,3105.4,3104.8,2.09019122]
[1763321279922,0.6561,3104.9,3104.8,2.09019122]
[1763321280595,0.1983,3104.9,3104.8,2.09019122]
[1763321280796,0.6561,3104.9,3104.8,0.95645042]
[1763321280993,0.6561,3104.9,3104.5,0.001]
[1763321280997,1.1524,3104.9,3104.5,0.001]
[1763321281818,0.1983,3104.9,3104.5,0.001]
[1763321282134,0.4963,3105.1,3104.5,0.001]
[1763321283228,0.1983,3105.2,3104.5,0.406504]
[1763321283429,0.002,3105.4,3104.5,0.406504]
[1763321283737,0.4983,3105.4,3104.5,0.406504]
[1763321284431,0.4983,3105.4,3104.8,8.43076341]
[1763321284627,0.4983,3105.4,3104.8,9.27383975]
[1763321284828,0.6561,3104.9,3104.8,8.43076341]
[1763321285032,0.4983,3105.4,3104.8,8.43076341]
[1763321285198,0.6561,3104.9,3104.8,8.43076341]
[1763321285629,0.4983,3105.4,3104.8,9.97000821]
[1763321285630,0.002,3105.4,3104.8,9.97000821]
[1763321285833,0.002,3105.6,3105.4,1.5392448]
[1763321286730,0.002,3105.5,3105.4,1.5392448]
[1763321287434,0.002,3105.6,3105.4,1.5392448]
[1763321289250,0.50523849,3107.6,3105.8,0.405504]
[1763321289401,0.1983,3107.9,3107.4,1.5392448]
[1763321289599,0.1983,3108.2,3107.9,1.1337408]
[1763321290250,0.1983,3108.6,3108.0,0.405504]
[1763321290455,0.1983,3108.8,3108.5,1.1337408]
[1763321290612,0.1983,3109.3,3108.6,1.36195442]
[1763321290948,0.1983,3109.3,3109.0,1.1337408]
[1763321291848,0.1983,3109.6,3109.0,1.1337408]
[1763321292019,0.1983,3109.6,3109.5,8.43076341]
[1763321292437,0.6561,3109.6,3109.5,8.43076341]
[1763321292811,1.1524,3109.6,3109.5,8.43076341]
[1763321294958,1.1524,3109.6,3109.0,8.43076341]
[1763321295167,0.4963,3109.5,3109.0,8.43076341]
[1763321295370,0.49005231,3109.5,3109.0,8.43076341]
[1763321295730,1.452,3110.4,3109.1,1.1337408]
[1763321295934,1.452,3110.4,3109.5,8.43076341]
[1763321296131,1.452,3110.4,3108.7,1.1337408]
[1763321296132,0.4615,3109.1,3108.7,1.1337408]
[1763321296878,0.4615,3109.1,3108.6,2.09019122]
[1763321297079,0.1955,3108.8,3108.1,8.64043803]
[1763321297383,0.1955,3108.8,3108.7,1.1337408]
[1763321297672,0.1955,3108.8,3108.6,8.64043803]
[1763321298042,0.1955,3108.8,3108.7,1.1337408]
[1763321298769,0.1955,3109.1,3108.7,1.1337408]
[1763321298970,0.1955,3109.1,3108.8,0.97741788]
[1763321299340,0.4767,3109.6,3108.8,0.97741788]
[1763321300979,0.657,3108.9,3108.3,0.405504]
[1763321301177,0.4615,3108.8,3108.3,0.405504]
[1763321301410,0.494,3108.4,3108.2,1.1337408]
[1763321301582,0.494,3108.3,3107.5,0.96693875]
[1763321301748,0.494,3108.2,3107.5,9.60737678]
[1763321302083,0.494,3108.2,3106.6,3.21892245]
[1763321302084,0.1966,3108.0,3107.6,0.96073768]
[1763321302259,0.1966,3108.0,3107.1,1.1337408]
[1763321302463,0.6585,3107.9,3107.0,8.64043803]
[1763321302670,0.1966,3107.9,3107.1,1.1337408]
[1763321303482,0.1966,3107.9,3107.1,0.405504]
[1763321303685,0.1966,3107.9,3107.3,0.405504]
[1763321308004,0.1966,3107.9,3106.7,3.88]
[1763321308005,0.4619,3107.8,3106.8,1.1337408]
[1763321308203,0.002,3108.4,3107.8,1.1337408]
[1763321308404,0.002,3108.4,3108.2,8.64043803]
[1763321308625,0.002,3108.4,3108.3,1.5392448]
[1763321310469,0.002,3108.4,3108.3,1.5007448]
[1763321310668,0.002,3108.8,3108.3,1.5007448]
[1763321310864,0.002,3108.8,3108.7,8.64043803]